Cogmind - Beta 16 @@@ ROGUE MODE // 2025.11.04 @ 20:25:53 Player: Naughtyusername Result: Destroyed by Y-54 Guardian with Gatling Laser Performance ------------- Evolutions (0) 0 Regions Visited (3) 600 Robots Destroyed (25) 125 Value Destroyed (501) 501 Prototype IDs (1) 20 Alien Tech Used (0) 0 Bonus (-76) -76 TOTAL SCORE: 1170 Bonus ------- Friendly Fire -76 Cogmind --------- Core Integrity 0/250 Matter 71/300 Energy 52/100 System Corruption 0% Temperature Cool (6) Movement Core (150) Ox2 Location -7/Recycling Parts ------- > --- POWER (1+1) ------ (None) > --- PROPULSION (2) --- (None) > --- UTILITY (2) ------ (None) > --- WEAPON (2) ------- Powered Cannon > --- INVENTORY (5) ---- Barrage Gun Flak Gun Grenade Launcher Peak State ------------ > --- POWER ------------ Ion Engine > --- PROPULSION ------- Light Treads Spiked Treads > --- UTILITY ---------- Scrap Shield > --- WEAPON ----------- Barrage Gun Barrage Gun > --- INVENTORY -------- Powered Cannon Grenade Launcher [Rating: 15] Favorites ----------- Power Ion Engine Engine Ion Engine Propulsion Light Treads Treads Light Treads Utility Small Storage Unit Device Seismic Detector Storage Small Storage Unit Protection Scrap Shield Weapon Barrage Gun Energy Cannon Subdweller Beam Cannon Ballistic Gun Barrage Gun Launcher Grenade Launcher Build | -11 -10 -10 -7 ------- Run | Yrd Mat Sub Rec Slots Evolved . | . . . . Power . | . . . . Propulsion . | . . . . Utility . | . . . . Weapon . | . . . . Parts Attached 18 | 7 . 7 4 Power 2 | 1 . 1 . Engine 2 | 1 . 1 . Core . | . . . . Reactor . | . . . . Propulsion 4 | 2 . 1 1 Treads 4 | 2 . 1 1 Leg . | . . . . Wheel . | . . . . Hover . | . . . . Flight . | . . . . Utility 4 | 2 . 1 1 Device 2 | 1 . 1 . Storage 1 | 1 . . . Processor . | . . . . Hackware . | . . . . Protection 1 | . . . 1 Artifact . | . . . . Weapon 8 | 2 . 4 2 Energy Gun . | . . . . Energy Cannon 2 | . . 1 1 Ballistic Gun 5 | 2 . 2 1 Ballistic Cannon . | . . . . Launcher 1 | . . 1 . Special Weapon . | . . . . Impact Weapon . | . . . . Slashing Weapon . | . . . . Piercing Weapon . | . . . . Special Melee Weapon . | . . . . Unidentified Prototypes 1 | . . . 1 Parts Lost 8 | . . 2 6 Power 2 | . . 1 1 Propulsion 3 | . . . 3 Utility 2 | . . 1 1 Weapon 1 | . . . 1 Highest Loss Streak 5 | . . 1 5 To Critical Strikes . | . . . . Average Backups 5 | 1 3 5 4 Power . | . 1 . . Propulsion 1 | . . 1 1 Utility 1 | . 2 1 . Weapon 2 | . . 2 2 Tool/Special . | . . . . Unused Backups 1 | . . 1 . Power . | . . . . Propulsion . | . . . . Utility 1 | . . 1 . Weapon . | . . . . Tool/Special . | . . . . Average Slot Usage (%) 93 | . 100 94 80 Engine 13 | . 14 13 10 Treads 27 | . 28 28 24 Device 8 | . 14 8 7 Storage 13 | . 14 14 7 Energy Cannon 1 | . . 1 2 Ballistic Gun 26 | . 28 26 23 Peak Build Rating 15 | 7 7 13 15 Average Rating 10 | 6 7 10 13 On Entrance 6 | . 7 7 13 Avg Prop Armor Cover (%) . | . . . . Naked Turns . | . . . . Heaviest Build 26 | 14 14 22 26 Greatest Support 40 | 40 40 40 40 Greatest Overweight (x) . | . . . . Average Overweight (x) . | . . . . Largest Inventory Capacity 8 | 8 8 8 8 Average Capacity 7 | 7 8 8 6 Most Carried 8 | 3 4 8 8 Average Carried 6 | 1 3 7 5 Final Capacity 8 | 8 8 8 5 Final Carried 8 | 3 4 8 3 Class Distribution -------------------- 100% | Mutant Dominant Class ---------------- Mutant | -10/Materials Mutant | -10/Subcaves Mutant | -7/Recycling Resources | -11 -10 -10 -7 ----------- Run | Yrd Mat Sub Rec Matter Collected 869 | 402 . 467 . Remotely 287 | 279 . 8 . Salvage Created 1040 | 277 . 414 349 Parts 65 | 25 . 28 12 Haulers Intercepted . | . . . . Recyclers Shooed 2 | . . . 2 Parts Field Recycled . | . . . . Retrieved Matter . | . . . . Parts Self-Destructed 5 | . . 5 . Prevented . | . . . . Parts Restored . | . . . . Kills | -11 -10 -10 -7 ------- Run | Yrd Mat Sub Rec Combat Hostiles Destroyed 13 | . . 11 2 Guns 10 | . . 9 1 Cannons 2 | . . 1 1 Classes Destroyed 7 | 3 . 4 . Worker 2 | 2 . . . Tunneler 6 | 6 . . . Recycler 4 | 1 . . 3 Swarmer 4 | . . 4 . Sentry 3 | . . 1 2 Artisan 2 | . . 2 . Subdweller 6 | . . 6 . Best Kill Streak 4 | 4 . 4 4 Combat Bots Only 4 | . . 4 1 Max Kills in Single Turn 1 | 1 . 1 1 Gunslinging . | . . . . Exploded . | . . . . Melee . | . . . . Uniques/NPCs Destroyed . | . . . . Combat | -11 -10 -10 -7 -------- Run | Yrd Mat Sub Rec Hostile Shots Fired 216 | . . 51 165 Missed 77 | . . 14 63 Hits 139 | . . 37 102 Projectile 139 | . . 37 102 Damage Taken 1381 | . . 624 757 Core 255 | . . 117 138 Absorbed by Shields . | . . . . Core Remaining (%) 100 | 100 . . . Volleys Fired 138 | 33 . 87 18 Largest 2 | 2 . 2 2 Hottest 108 | 40 . 108 56 Shots Fired 248 | 66 . 148 34 Gun 239 | 66 . 141 32 Cannon 8 | . . 6 2 Launcher 1 | . . 1 . Special . | . . . . Kinetic 239 | 66 . 141 32 Thermal 8 | . . 6 2 Explosive 1 | . . 1 . Electromagnetic . | . . . . Robot Hit Streak 13 | 11 . 13 8 Robot Miss Streak 3 | 3 . 1 2 Penetration Max . | . . . . Secondary Targets 2 | . . 2 . Max Gunslinging Chain 1 | . . 1 . Shots Hit Robots 112 | 44 . 46 22 Core Hits 48 | 15 . 22 11 Critical Kills 1 | . . 1 . Critical Parts Destroyed . | . . . . Critical Strikes 1 | . . 1 . Meltdown 1 | . . 1 . Melee Attacks . | . . . . Impact . | . . . . Slashing . | . . . . Piercing . | . . . . Sneak Attacks . | . . . . Combat Hostiles . | . . . . Follow-up Attacks . | . . . . Damage Inflicted 1602 | 450 . 715 437 Guns 1429 | 447 . 659 323 Cannons 170 | . . 56 114 Explosions . | . . . . Melee . | . . . . Ramming 3 | 3 . . . Kinetic 1429 | 447 . 659 323 Thermal 170 | . . 56 114 Explosive . | . . . . Electromagnetic . | . . . . Impact . | . . . . Slashing . | . . . . Piercing . | . . . . Highest Corruption . | . . . . Average Corruption . | . . . . Corruption Purged . | . . . . Corruption Blocked . | . . . . Overload Shots . | . . . . Overflow Damage 18 | . . . 18 Projectiles 18 | . . . 18 Explosions . | . . . . Melee . | . . . . Knockbacks . | . . . . Impact . | . . . . Kinetic . | . . . . Secondary . | . . . . Self-Inflicted Damage . | . . . . Shots . | . . . . Rammed 1 | 1 . . . Targets Rammed 1 | 1 . . . Kicked . | . . . . Crushed . | . . . . Highest Temperature 58 | . . 28 58 Average Temperature 22 | . . 21 22 Received Heat Transfer 300 | . . 78 222 Siege Activations . | . . . . Martial Activations . | . . . . Shielding Activations . | . . . . Robots Disrupted . | . . . . Combat Hostiles . | . . . . Robots Corrupted . | . . . . Combat Hostiles . | . . . . Parts Fried . | . . . . Impact Corruptions . | . . . . Robots Melted 1 | . . 1 . Combat Hostiles 1 | . . 1 . Parts Melted 3 | . . 3 . Heat Transferred 74 | . . 74 . Parts Sabotaged . | . . . . Parts Stolen . | . . . . Parts Stripped . | . . . . Power Chain Reactions . | . . . . Alert | -11 -10 -10 -7 ------- Run | Yrd Mat Sub Rec Maximum Alert Level . | . . . . Low Security (%) 100 | 100 100 . 100 Level 1 . | . . . . Level 2 . | . . . . Level 3 . | . . . . Level 4 . | . . . . Level 5 . | . . . . High Security . | . . . . Max Security . | . . . . Peak Influence 41 | 15 . . 41 Initial 21 | . . . 21 Average 6 | 2 . . 18 Influence Increases 291 | 45 . 160 86 Destroy 0b10 Robot/C 140 | . . 100 40 Destroy 0b10 Robot/NC 60 | 45 . . 15 Select Force Hacks 30 | . . . 30 Destroy Structure 1 | . . . 1 Lose Combat Pursuer 60 | . . 60 . Influence Decreases 291 | 45 . 116 130 Entered New Map 23 | . . . 23 Time Decay 211 | 45 . 116 50 Lost Part 57 | . . . 57 Squads Dispatched . | . . . . Investigation . | . . . . Extermination . | . . . . Reinforcement . | . . . . Assault . | . . . . Garrison . | . . . . Intercept . | . . . . Searches Triggered . | . . . . Construction Impeded . | . . . . Haulers Reinforced . | . . . . Active Scanning Responses . | . . . . Cargo Convoy Interrupts . | . . . . Stealth | -11 -10 -10 -7 --------- Run | Yrd Mat Sub Rec Distress Signals . | . . . . Communications Jammed . | . . . . Distress Signals . | . . . . Times Spotted 22 | . 1 18 3 Peak Tracking Total 6 | . 1 6 3 Tactical Retreats 2 | . . 2 . Traps | -11 -10 -10 -7 ------- Run | Yrd Mat Sub Rec Traps Triggered 2 | . . 2 . Indirectly . | . . . . Trap Hack Attempts . | . . . . Triggered . | . . . . Disarmed . | . . . . Reprogrammed . | . . . . Reused . | . . . . Traps Extracted . | . . . . Installed . | . . . . Triggered . | . . . . Machines | -11 -10 -10 -7 ---------- Run | Yrd Mat Sub Rec Machines Disabled 1 | . . 1 . Max in Single Turn 1 | . . 1 . Machines Repaired . | . . . . Machines Dismantled . | . . . . Machines Sabotaged . | . . . . Overloaded Fab Kills . | . . . . Hacking | -11 -10 -10 -7 --------- Run | Yrd Mat Sub Rec Machines Accessed 4 | . . 3 1 Terminals . | . . . . Fabricators . | . . . . Repair Stations . | . . . . Recycling Units 1 | . . . 1 Scanalyzers . | . . . . Garrison Access . | . . . . Total Hacks 9 | . . 6 3 Successful 7 | . . 6 1 Failed 2 | . . . 2 Catastrophic . | . . . . Database Lockouts . | . . . . Manual 2 | . . . 2 Terminals . | . . . . Fabricators . | . . . . Repair Stations . | . . . . Recycling Units 3 | . . . 3 Scanalyzers . | . . . . Garrison Access . | . . . . Terminal Hacks 6 | . . 6 . Record 4 | . . 4 . Open Door 1 | . . 1 . Release Object 1 | . . 1 . Fabricator Hacks . | . . . . Repair Station Hacks . | . . . . Recycling Unit Hacks . | . . . . Scanalyzer . | . . . . Garrison Access Hacks . | . . . . Unauthorized Hacks 1 | . . . 1 Terminals . | . . . . Fabricators . | . . . . Repair Stations . | . . . . Recycling Units 1 | . . . 1 Tunnel 1 | . . . 1 Scanalyzers . | . . . . Garrison Access . | . . . . Data Cores Recovered . | . . . . Used . | . . . . Hacking Detections 1 | . . . 1 Full Trace Events . | . . . . Feedback Events . | . . . . Feedback Blocked . | . . . . Robot Schematics Acquired . | . . . . Robots Built . | . . . . Authchips . | . . . . Time . | . . . . Total Robot Build Rating . | . . . . Part Schematics Acquired . | . . . . Parts Built . | . . . . Authchips . | . . . . Time . | . . . . Total Part Build Rating . | . . . . Part Studies Acquired . | . . . . Parts Repaired . | . . . . Time . | . . . . Parts Recycled . | . . . . Recycled Matter . | . . . . Retrieved Matter . | . . . . Retrieved Components . | . . . . Parts Scanalyzed . | . . . . Part Schematics Acquired . | . . . . Parts Damaged . | . . . . Bothacking | -11 -10 -10 -7 ------------ Run | Yrd Mat Sub Rec Used RIF Installer . | . . . . Robots Hacked . | . . . . Non-combat . | . . . . Combat . | . . . . Robot Hacks Applied . | . . . . Relay Couplers Released . | . . . . Fabnet Peak Effective % . | . . . . Robots Rewired . | . . . . Allies Hacked . | . . . . Hacks Repelled . | . . . . Allies | -11 -10 -10 -7 -------- Run | Yrd Mat Sub Rec Total Allies . | . . . . Largest Group . | . . . . Highest-Rated Group . | . . . . Highest-Rated Ally . | . . . . Total Orders . | . . . . Ally Attacks . | . . . . Total Damage . | . . . . Kills . | . . . . Allies Corrupted . | . . . . Allies Melted . | . . . . Intel | -11 -10 -10 -7 ------- Run | Yrd Mat Sub Rec Active Infowar (turns) 2129 | . . 2075 54 Seismic 2129 | . . 2075 54 Robot Analysis Total . | . . . . Derelict Logs Recovered 2 | . . 2 . Drone Launches . | . . . . Drone Recoveries . | . . . . Exploration | -11 -10 -10 -7 ------------- Run | Yrd Mat Sub Rec Turns Passed 4237 | 313 53 3750 121 Spaces Moved 2323 | 99 33 2160 31 Core 4 | 4 . . . Treads 2319 | 95 33 2160 31 Legs . | . . . . Wheels . | . . . . Hover . | . . . . Flight . | . . . . Fastest Speed 50 | 50 160 160 160 Average Speed 159 | 155 160 160 160 Slowest Speed 160 | 160 160 160 160 Overloaded Moves . | . . . . Propulsion Burnouts . | . . . . Robots Hopped . | . . . . Potential Cave-ins . | . . . . Cave-ins Triggered . | . . . . Exploration Rate (%) 31 | 9 10 95 11 Regions Visited 3 Branch Regions 2 Pre-discovered Areas 3 | . . 2 1 Known Exits Taken . | . . . . Unknown Exits Taken 3 | 1 1 1 . Scrap Searched 1 | . . 1 . Spaces Dug 1 | . . 1 . Terrain Destroyed 3 | . . 3 . Melee . | . . . . Projectile 1 | . . 1 . AOE 2 | . . 2 . Terrain Rammed . | . . . . Walls Destroyed . | . . . . Machines Disabled . | . . . . Actions | -11 -10 -10 -7 --------- Run | Yrd Mat Sub Rec Total 2619 | 195 33 2317 74 Wait 123 | 53 . 54 16 Move 2320 | 98 32 2159 31 Hop . | . . . . Pick Up 10 | 3 1 5 1 Fast Attach 8 | 7 . . 1 Attach 5 | . . 2 3 Detach 1 | . . . 1 Swap 6 | . . 6 . Drop 6 | . . 3 3 Fire 138 | 33 . 87 18 Melee . | . . . . Ram . | . . . . Kick . | . . . . Crush 1 | 1 . . . Escape Stasis . | . . . . Rewire . | . . . . Trap . | . . . . Miscellaneous 1 | . . 1 . Route ------- -11/Scrapyard -10/Materials -10/Subcaves (discovered 5 exits: [*Mat x2] / *Rec / [*Scr x2]) -7/Recycling History --------- Turn | Location | Event 7 | -11/Scrapyard | Discovered new exit (range 15) 314 | -11/Scrapyard | Entered Materials 315 | -10/Materials | Build established: Mutant 315 | -10/Materials | Met a group of wandering Federalists 362 | -10/Materials | Discovered new exit (range 5) 367 | -10/Materials | Entered Subcaves 367 | -10/Subcaves | Accompanied by 4 allies 368 | -10/Subcaves | Continued accompanying wandering Federalists (5) 368 | -10/Subcaves | Approached by a straggling Scientist 386 | -10/Subcaves | Discovered new exit (range 9) 486 | -10/Subcaves | Scientist uncovered a shortcut to Scraptown 616 | -10/Subcaves | Wandering Federalist uncovered a shortcut to Scraptown 803 | -10/Subcaves | Learned 2 Materials zone layouts 866 | -10/Subcaves | Lost 3 allies 972 | -10/Subcaves | Shifting Twisted Machinery released Mak. Power Source 988 | -10/Subcaves | Shifting Twisted Machinery released Barrage Gun 1338 | -10/Subcaves | Released subatomizers from SUBCON Basin 1462 | -10/Subcaves | Discovered new exit (range 10) 1544 | -10/Subcaves | Visited Clippyterm 1548 | -10/Subcaves | Learned Factory emergency access door positions 1639 | -10/Subcaves | A swath of the cavern ceiling suddenly collapsed 1865 | -10/Subcaves | Learned location of Zion (-7) 1865 | -10/Subcaves | Met a Zionite searching for "candidates" 2011 | -10/Subcaves | Visited 4L-MR0's lab 2037 | -10/Subcaves | Found Prototype Energy Cannon 2184 | -10/Subcaves | Ambushed by angry Subdweller bent on revenge 2254 | -10/Subcaves | Shifting Twisted Machinery released Sub. Beam Cannon 2501 | -10/Subcaves | Shifting Twisted Machinery released Barrage Gun 2503 | -10/Subcaves | Shifting Twisted Machinery released Enh. Flamer 2674 | -10/Subcaves | Discovered new exit (range 11) 4117 | -10/Subcaves | Entered Recycling 4145 | -7/Recycling | Core integrity fell below 50% 4214 | -7/Recycling | Core integrity fell below 20% 4219 | -7/Recycling | Identified Powered Cannon 4220 | -7/Recycling | Attached Powered Cannon, gained temporary slot: Power 4238 | -7/Recycling | Destroyed by Y-54 Guardian with Gatling Laser Last Messages --------------- 04196_ R-06 Scavenger destroyed. 04196_ R-06 Scavenger collects Com. Wheel. 04201_ Destroyed Com. Wheel. 04201_ R-06 Scavenger destroyed. 04207_ Scrap Shield destroyed. 04207_ Ion Engine destroyed. 04212_ R-06 Scavenger collects Sml. Storage Unit. 04213_ Spk. Treads destroyed. 04217_ Acquired Flak Gun. 04219_ Dropped Barrage Gun. 04219_ Identified Powered Cannon. 04220_ Core temporarily expanded with Power slot. 04225_ Y-54 Guardian destroyed. 04225_ R-06 Scavenger collects Lgt. Treads. 04228_ Destroyed Imp. Heat Sink. 04228_ R-06 Scavenger collects Imp. Heat Sink. 04234_ R-06 Scavenger collects Com. Wheel. 04235_ Lgt. Treads destroyed. Map ----- +----------------------------------------------------+ | | | | | | | | | ?????????????????????????????????????????????????? | | ?????????????????????????????????????????????????? | | ?????????????????????????????????????????????????? | | ?????????????????????????????????????????????????? | | ?????????????????????????????????????????????????? | | ?????????????????????????????????????????????????? | | ?????????????????????????????????????????????????? | | ?????????????????????????????????????????????????? | | ?????????????????????????????????????????????????? | | ?????????????????????????????????????????????????? | | ?????????????????????????????????????????????????? | | ?????????????????????????????????????????????????? | | ?????????????????????????????????????????????????? | | ?????????????????????????????????????????????????? | | ???????#############?????#####???????????????????? | | ???????#"""""""""""#?????#! !#???????????????????? | | ???# ### """"T"""" #######! !######??????????????? | | ???# +??????????????? | | ?????# #????????????????? | | ??????? """ #????????????????? | | ??????? """ "" [=%! #????????????????? | | ??????? """ "" =@%[* #????????????????? | | ?????# Y" #####Y######????????????????? | | ?????# "" # %! #?????????????????? | | ?????# "" # ! ! #?????????????????? | | ?????# # #?????????????????? | | ?????# # #?????????????????? | | ?????# ### # +?????????????????? | | ?????# ???# # #?????????????????? | | ?????# ???? # #?????????????????? | | ?????+????## + % #?????????????????? | | ???????????# ##+########?????????????????? | | ???????????# ?????????????????????????? | | ???????????# ?????????????????????????? | | ???????????# #########?????????????????????????? | | ???????????? ??????????????????????????????????? | | ?????????????? ??????????????????????????????????? | | ?????????????????????????????????????????????????? | | ?????????????????????????????????????????????????? | | ?????????????????????????????????????????????????? | | ?????????????????????????????????????????????????? | | ?????????????????????????????????????????????????? | | ?????????????????????????????????????????????????? | | ?????????????????????????????????????????????????? | | ?????????????????????????????????????????????????? | | ?????????????????????????????????????????????????? | +----------------------------------------------------+ Best States ------------- Heat Dissipation 25 Energy Generation 10 Energy Capacity 250 Matter Stores 300 Matter Capacity 300 Sight Range 16 Terrain Scan Density 10 Armor Coverage 800 Evasion (%) 40 Recoil Reduction 2 Item Schematics ----------------- None Robot Schematics ------------------ None Fabricated ------------ Nothing Repaired ---------- Nothing Studied --------- None Alien Tech Used ----------------- None Achievements -------------- None Challenges ------------ None Game ------ Seed SapperHeavyMagmablaster Manual? 0 Play Time 00:16:26 Cumulative 506.6 hours Start 2025.11.04 @ 19:26:31 End 2025.11.04 @ 20:25:53 Sessions 1 Manual Loads 0 Difficulty Rogue Special Mode None Game No. 272 Rogue 272 Adventurer 0 Explorer 0 Win Type - Total 22 Types 13/1/5/1/0/0/0/1/1/0 Lore% 94 Gallery% 88 Achievement% 79 Wizard Run 0 Options --------- Layout 2 ASCII 0 Keyboard 1 Movement Vi Keybinds 0 Fullscreen 1 Font 28/Cog Map View 50x52 Zoom Use 0% Tactical HUD 1 Map Filters NONE Filters NONE Steam 1 RUN: 88052e20-b0d0-454e-881a-c2fe53136390